bitfinex/quotes_BTCUSD_20241103
["timestamp","ask_amount","ask_price","bid_price","bid_amount"]
[1730601136593,0.028636,68362.0,68361.0,0.81009066]
[1730601136952,0.015636,68362.0,68361.0,0.80909066]
[1730601137289,0.016636,68362.0,68361.0,1.18863779]
[1730601137496,0.016636,68362.0,68361.0,0.97019066]
[1730601137701,0.002636,68362.0,68361.0,0.81509066]
[1730601137916,0.002636,68362.0,68361.0,0.67442405]
[1730601138125,0.002636,68362.0,68361.0,0.68842405]
[1730601138573,0.002636,68362.0,68361.0,0.67442405]
[1730601138784,0.002636,68362.0,68361.0,0.68842405]
[1730601138994,0.002636,68362.0,68361.0,0.18279704]
[1730601138995,0.001636,68362.0,68361.0,0.18279704]
[1730601139194,0.001636,68362.0,68361.0,0.15979704]
[1730601139415,0.001636,68362.0,68361.0,0.16679704]
[1730601139619,0.001636,68362.0,68361.0,0.14579704]
[1730601140048,0.001636,68362.0,68361.0,0.15379704]
[1730601140258,0.001636,68362.0,68361.0,0.14579704]
[1730601140661,0.001636,68362.0,68361.0,0.14679704]
[1730601140879,0.082436,68362.0,68361.0,0.16079704]
[1730601141499,0.082436,68362.0,68361.0,0.14679704]
[1730601141745,0.082436,68362.0,68361.0,0.14779704]
[1730601141950,0.382136,68362.0,68361.0,0.002]
[1730601142248,0.1,68361.0,68351.0,0.21844713]
[1730601142453,0.1,68361.0,68358.0,0.21844713]
[1730601142673,0.1,68361.0,68351.0,0.21844713]
[1730601142875,0.1,68361.0,68336.0,0.21844713]
[1730601142876,0.205,68360.0,68336.0,0.21844713]
[1730601143079,0.0858,68358.0,68352.0,0.21844713]
[1730601143288,0.0858,68358.0,68345.0,0.14579704]
[1730601143489,0.0858,68358.0,68351.0,0.001]
[1730601143708,0.0858,68358.0,68345.0,0.14579704]
[1730601144130,0.0858,68358.0,68344.0,0.001]
[1730601144131,0.1,68352.0,68344.0,0.001]
[1730601145101,0.1,68350.0,68344.0,0.001]
[1730601145325,0.1,68350.0,68336.0,0.21844713]
[1730601145544,0.12758148,68344.0,68337.0,0.14579704]
[1730601145749,0.1,68350.0,68337.0,0.14579704]
[1730601145750,0.12758148,68343.0,68337.0,0.14579704]
[1730601146001,0.0808,68342.0,68337.0,0.14579704]
[1730601146220,0.20838148,68342.0,68337.0,0.14579704]
[1730601146648,0.0808,68342.0,68337.0,0.14579704]
[1730601146874,0.009,68343.0,68338.0,0.21844713]
[1730601147074,0.009,68343.0,68339.0,0.14579704]
[1730601147297,0.12758148,68347.0,68339.0,0.36424417]
[1730601147518,0.12758148,68348.0,68339.0,0.14579704]
[1730601147736,0.003,68350.0,68339.0,0.023]
[1730601147737,0.10633151,68340.0,68339.0,0.023]
[1730601147947,0.10633151,68340.0,68338.0,0.25246983]
[1730601147948,0.10633151,68343.0,68341.0,0.169324]
[1730601148155,0.10633151,68343.0,68341.0,0.169325]
[1730601148156,0.002,68342.0,68341.0,0.169325]
[1730601148372,0.04454414,68342.0,68341.0,0.269325]
[1730601148636,0.04254414,68345.0,68344.0,0.123]
[1730601148848,0.04254414,68346.0,68345.0,0.146316]
[1730601149064,0.04254414,68346.0,68345.0,0.52178583]
[1730601149315,0.04254414,68346.0,68345.0,0.37546983]
[1730601149519,0.001636,68362.0,68345.0,0.37546983]
[1730601149520,0.06381461,68348.0,68346.0,0.023]
[1730601149753,0.08508078,68348.0,68346.0,0.023]
[1730601149953,0.08508078,68348.0,68341.0,0.014]
[1730601149954,0.001,68345.0,68344.0,0.007]
[1730601150170,0.0851088,68346.0,68344.0,0.023]
[1730601150368,0.0851088,68346.0,68345.0,0.023]
[1730601150614,0.001636,68362.0,68345.0,0.023]
[1730601150615,0.10633151,68347.0,68345.0,0.023]
[1730601150822,0.014,68346.0,68345.0,0.001]
[1730601151340,0.14158148,68346.0,68345.0,0.002]
[1730601151524,0.014,68346.0,68345.0,0.002]
[1730601151733,0.014,68346.0,68345.0,0.001]
[1730601151941,0.0808,68348.0,68336.0,0.21844713]
[1730601152188,0.12767927,68344.0,68337.0,0.14579704]
[1730601152608,0.0808,68348.0,68337.0,0.14579704]
[1730601152609,0.12767927,68345.0,68338.0,0.023]
[1730601152826,0.12767927,68351.0,68345.0,0.023]
[1730601153041,0.008,68346.0,68345.0,0.170316]
[1730601153254,0.12767927,68354.0,68345.0,0.169316]
[1730601153458,0.10643824,68346.0,68343.0,0.023]
[1730601153699,0.12767927,68354.0,68344.0,0.16879704]
[1730601153903,0.12767927,68353.0,68345.0,0.023]
[1730601154110,0.14352917,68354.0,68347.0,0.023]
[1730601154287,0.14352917,68354.0,68348.0,0.14579704]
[1730601154719,0.14352917,68353.0,68348.0,0.14579704]
[1730601154945,0.14352917,68350.0,68336.0,0.21844713]
[1730601155175,0.14370826,68348.0,68345.0,0.001]
[1730601155425,0.006,68346.0,68345.0,0.002]
[1730601155638,0.006,68346.0,68345.0,0.001]
[1730601155639,0.14970826,68346.0,68345.0,0.001]
[1730601155840,0.006,68346.0,68345.0,0.001]
[1730601156267,0.14372338,68348.0,68342.0,0.000818]
[1730601156729,0.14372338,68346.0,68342.0,0.000818]
[1730601156948,0.14372338,68344.0,68343.0,0.14579704]
[1730601157150,0.0808,68344.0,68343.0,0.14579704]
[1730601157646,0.0808,68344.0,68319.0,0.392741]
[1730601157861,0.14371884,68341.0,68338.0,0.21844713]
[1730601158081,0.14371884,68341.0,68339.0,0.14579704]
[1730601158506,0.0808,68344.0,68339.0,0.14579704]
[1730601158736,0.14371537,68341.0,68319.0,0.1]
[1730601158922,0.14371537,68339.0,68336.0,0.21844713]
[1730601159121,0.007,68341.0,68338.0,0.001]
[1730601159367,0.007,68341.0,68337.0,0.14579704]
[1730601159368,0.0808,68344.0,68337.0,0.14579704]
[1730601159598,0.0808,68344.0,68321.0,0.21844713]
[1730601159599,0.0808,68344.0,68339.0,0.001]
[1730601159810,0.0808,68344.0,68339.0,0.002]
[1730601159811,0.0878,68344.0,68339.0,0.002]
[1730601160021,0.0808,68344.0,68339.0,0.001]
[1730601160455,0.007,68341.0,68339.0,0.001]
[1730601160682,0.007,68341.0,68338.0,0.001]
[1730601161114,0.007,68341.0,68338.0,0.002]
[1730601161572,0.0808,68344.0,68338.0,0.001]
[1730601161787,0.0808,68344.0,68339.0,0.001]
[1730601161788,0.0878,68344.0,68339.0,0.001]
[1730601162220,0.0808,68344.0,68338.0,0.001]
[1730601162416,0.0808,68344.0,68330.0,0.14579704]
[1730601162630,0.14364074,68335.0,68330.0,0.14579704]
[1730601162814,0.14363978,68335.0,68330.0,0.14579704]
[1730601163456,0.14363978,68337.0,68332.0,0.25251458]
[1730601163679,0.14363978,68338.0,68332.0,0.25251458]
[1730601163897,0.14363978,68339.0,68332.0,0.25251458]
[1730601164111,0.0808,68344.0,68332.0,0.25251458]
[1730601164112,0.14363978,68338.0,68332.0,0.25251458]
[1730601164327,0.14363978,68337.0,68332.0,0.25251458]
[1730601164536,0.14363978,68338.0,68332.0,0.25251458]
[1730601164744,0.14363978,68336.0,68333.0,0.14579704]
[1730601165020,0.14363978,68336.0,68325.0,0.25251458]
[1730601165021,0.14363978,68342.0,68326.0,0.023828]
[1730601165242,0.12767122,68332.0,68329.0,0.21844713]
[1730601165445,0.12767122,68332.0,68330.0,0.14579704]
[1730601165919,0.0808,68344.0,68326.0,0.000828]
[1730601165920,0.12767122,68331.0,68326.0,0.000828]
[1730601166136,0.2805,68330.0,68326.0,0.000828]
[1730601166366,0.14363978,68329.0,68327.0,0.21844713]
[1730601166593,0.14363978,68329.0,68326.0,0.000828]
[1730601167054,0.14363978,68327.0,68326.0,0.000828]
[1730601167276,0.24863978,68327.0,68326.0,0.000828]
[1730601167503,0.105,68327.0,68326.0,0.000828]
[1730601168190,0.61725,68327.0,68326.0,0.001828]
[1730601168423,0.61725,68327.0,68311.0,0.21844713]
[1730601168424,0.005,68319.0,68311.0,0.21844713]
[1730601168664,0.12748153,68313.0,68311.0,0.21844713]
[1730601168895,0.1921,68317.0,68304.0,0.21844713]
[1730601168896,0.72193153,68312.0,68304.0,0.21844713]
[1730601169123,0.12745986,68305.0,68304.0,0.21844713]
[1730601169357,0.005,68310.0,68300.0,0.0001]
[1730601169593,0.12744831,68304.0,68300.0,0.0001]
[1730601169813,0.12744831,68303.0,68300.0,0.0001]
[1730601170036,0.12744831,68302.0,68300.0,0.0001]
[1730601170259,0.12744831,68303.0,68300.0,0.0001]
[1730601170496,0.70435,68301.0,68300.0,0.0001]
[1730601170709,0.78655,68301.0,68300.0,0.0001]
[1730601171850,0.80055,68301.0,68300.0,0.0011]
[1730601172086,0.79955,68301.0,68300.0,0.0011]
[1730601172523,0.92775616,68301.0,68300.0,0.0011]
[1730601172803,0.80055,68301.0,68300.0,0.0001]
[1730601174153,0.80055,68301.0,68300.0,0.0011]
[1730601174618,0.90455,68301.0,68300.0,0.0011]
[1730601174849,0.91855,68301.0,68300.0,0.0011]
[1730601175291,0.90455,68301.0,68300.0,0.0011]
[1730601175513,0.91855,68301.0,68300.0,0.0011]
[1730601176181,0.1,68300.0,68296.0,0.0089216]
[1730601176425,0.1,68298.0,68296.0,0.0089216]
[1730601176887,1.09725,68299.0,68296.0,0.0089216]
[1730601176888,0.71800759,68297.0,68296.0,0.0089216]
[1730601177322,0.61225,68297.0,68296.0,0.0089216]
[1730601177577,0.61225,68297.0,68296.0,0.0109216]
[1730601177795,0.71796379,68297.0,68296.0,0.0109216]
[1730601178010,0.69682387,68297.0,68296.0,0.0099216]
[1730601178293,0.6896822,68297.0,68296.0,0.0099216]
[1730601178519,0.68153977,68297.0,68296.0,0.0109216]
[1730601178742,0.63925,68297.0,68296.0,0.0109216]
[1730601178981,0.53925,68297.0,68296.0,0.0109216]
[1730601179831,0.53925,68297.0,68296.0,0.0117406]
[1730601180360,0.52525,68297.0,68296.0,0.15653764]
[1730601180811,0.53925,68297.0,68296.0,0.15753764]
[1730601181041,0.53925,68297.0,68296.0,0.15553764]
[1730601181042,0.51225,68297.0,68296.0,0.15553764]
[1730601181262,0.51225,68297.0,68296.0,0.15653764]
[1730601181263,0.52525,68297.0,68296.0,0.15653764]
[1730601181485,0.53925,68297.0,68296.0,0.15753764]
[1730601181694,0.52525,68297.0,68296.0,0.15653764]
[1730601181905,0.51225,68297.0,68296.0,0.15553764]
[1730601182152,0.51225,68297.0,68296.0,0.0107406]
[1730601182153,0.52525,68297.0,68296.0,0.0107406]
[1730601182372,0.66255612,68297.0,68296.0,0.0107406]
[1730601182580,0.68153977,68297.0,68296.0,0.0117406]
[1730601182794,0.63925,68297.0,68296.0,0.0117406]
[1730601183017,1.00388832,68297.0,68296.0,0.0107406]
[1730601183245,0.94045612,68297.0,68296.0,0.0107406]
[1730601183506,0.94045612,68297.0,68290.0,0.000828]
[1730601183507,0.005,68291.0,68290.0,0.000828]
[1730601183725,4.61530001,68291.0,68290.0,0.000828]
[1730601183943,4.69980126,68291.0,68290.0,0.000828]
[1730601184202,4.61530001,68291.0,68290.0,0.000828]
[1730601184649,4.62230001,68291.0,68290.0,0.000828]
[1730601184856,5.01700613,68291.0,68290.0,0.000828]
[1730601185075,0.005,68289.0,68275.0,0.000828]
[1730601185300,0.005,68280.0,68275.0,0.000828]
[1730601185529,0.97366672,68280.0,68275.0,0.000828]
[1730601185766,1.10360202,68280.0,68275.0,0.000828]
[1730601186014,0.99795612,68280.0,68275.0,0.000828]
[1730601186447,1.05721042,68280.0,68275.0,0.000828]
[1730601186678,0.95165,68280.0,68275.0,0.000828]
[1730601186889,0.95665,68280.0,68275.0,0.000828]
[1730601187103,1.46994704,68280.0,68275.0,0.000828]
[1730601187309,1.55438166,68280.0,68275.0,0.000828]
[1730601187548,1.48194704,68280.0,68279.0,0.001827]
[1730601187789,1.51925316,68280.0,68279.0,0.001827]
[1730601188059,1.51925316,68280.0,68279.0,0.000827]
[1730601188060,1.46794704,68280.0,68279.0,0.000827]
[1730601188287,1.48194704,68280.0,68279.0,0.000827]
[1730601188556,0.007,68276.0,68275.0,0.000828]
[1730601188764,0.007,68276.0,68275.0,0.00018728]
[1730601188765,5.38611163,68276.0,68275.0,0.00018728]
[1730601188988,6.16549631,68276.0,68275.0,0.00018728]
[1730601189226,6.35949631,68276.0,68275.0,0.00018728]
[1730601189447,6.71519631,68276.0,68275.0,0.00018728]
[1730601189694,6.71519631,68276.0,68267.0,0.21844713]
[1730601189695,0.3769,68270.0,68267.0,0.21844713]
[1730601189910,3.58509794,68270.0,68267.0,0.21844713]
[1730601190328,3.58509794,68270.0,68262.0,0.0089216]
[1730601190329,4.43435706,68270.0,68262.0,0.0089216]
[1730601190545,0.6339,68263.0,68262.0,0.0089216]
[1730601190761,4.43684427,68263.0,68262.0,0.0089216]
[1730601190979,3.31950621,68263.0,68262.0,0.0089216]
[1730601191450,3.32450621,68263.0,68262.0,0.0089216]
[1730601191657,3.47030325,68263.0,68262.0,0.0089216]
[1730601192129,3.48430325,68263.0,68262.0,0.0099216]
[1730601192349,3.49830325,68263.0,68262.0,0.0099216]
[1730601192574,3.47030325,68263.0,68262.0,0.0089216]
[1730601193913,3.48430325,68263.0,68262.0,0.0099216]
[1730601194141,3.52582921,68263.0,68262.0,0.0099216]
[1730601194362,3.51182921,68263.0,68262.0,0.0089216]
[1730601194592,3.52582921,68263.0,68262.0,0.0089216]
[1730601194833,3.52582921,68263.0,68262.0,0.0099216]
[1730601195289,3.52582921,68263.0,68262.0,0.00226931]
[1730601195290,3.53982921,68263.0,68262.0,0.00226931]
[1730601195510,3.52582921,68263.0,68262.0,0.00226931]
[1730601195773,1.16400621,68263.0,68262.0,0.00126931]
[1730601196222,1.17800621,68263.0,68262.0,0.00126931]
[1730601196452,1.16400621,68263.0,68262.0,0.00126931]
[1730601196873,1.51100621,68263.0,68262.0,0.00126931]
[1730601197371,1.52500621,68263.0,68262.0,0.00226931]
[1730601197585,1.69832921,68263.0,68262.0,0.00126931]
[1730601197822,1.61232921,68263.0,68262.0,0.00126931]
[1730601198035,1.61232921,68263.0,68262.0,0.00226931]
[1730601198242,1.71732921,68263.0,68262.0,0.00226931]
[1730601198447,1.71732921,68263.0,68262.0,0.00126931]
[1730601198448,1.71932921,68263.0,68262.0,0.00126931]
[1730601198637,1.99212921,68263.0,68262.0,0.00126931]
[1730601198845,1.99212921,68263.0,68262.0,0.00226931]
[1730601199070,0.005,68257.0,68251.0,0.21844713]
[1730601199293,0.002,68253.0,68251.0,0.21844713]
[1730601199578,0.699573,68252.0,68244.0,0.22177197]
[1730601199795,0.1873,68251.0,68244.0,0.22177197]
[1730601200034,0.1873,68251.0,68244.0,0.00332484]
[1730601200035,0.005,68246.0,68244.0,0.00332484]
[1730601200256,3.74860621,68246.0,68244.0,0.00332484]
[1730601200475,3.89940325,68246.0,68244.0,0.00332484]
[1730601200698,3.94592921,68246.0,68244.0,0.00332484]
[1730601200920,3.89940325,68246.0,68244.0,0.00332484]
[1730601201137,0.005,68240.0,68239.0,0.21844713]
[1730601201356,0.005,68234.0,68233.0,0.00293078]
[1730601201568,0.51725,68234.0,68232.0,0.21844713]
[1730601201780,0.51725,68234.0,68225.0,0.21844713]
[1730601202209,0.005,68229.0,68225.0,0.21844713]
[1730601202473,0.51225,68228.0,68225.0,0.21844713]
[1730601202661,0.005,68227.0,68212.0,6.213e-05]
[1730601202884,0.71225,68226.0,68221.0,0.21844713]
[1730601203101,0.71225,68226.0,68215.0,0.14579704]
[1730601203593,0.005,68225.0,68215.0,0.14579704]
[1730601203794,0.85625,68224.0,68213.0,0.004]
[1730601204015,0.85625,68224.0,68215.0,0.21844713]
[1730601204222,0.85625,68224.0,68214.0,0.14579704]
[1730601204223,1.405,68222.0,68216.0,0.21844713]
[1730601204423,0.51225,68221.0,68215.0,0.00082]
[1730601206189,0.52625,68221.0,68215.0,0.00082]
[1730601206388,0.52625,68221.0,68217.0,0.21844713]
[1730601206603,0.52625,68221.0,68218.0,0.14579704]
[1730601207203,0.54025,68221.0,68218.0,0.29238404]
[1730601207404,0.54025,68221.0,68218.0,0.14579704]
[1730601207735,0.54025,68221.0,68220.0,0.47096171]
[1730601207736,0.51225,68221.0,68220.0,0.47096171]
[1730601207948,0.52625,68221.0,68220.0,0.57289562]
[1730601208108,0.54025,68221.0,68220.0,0.16879704]
[1730601208539,0.54025,68221.0,68220.0,0.31538104]
[1730601208702,0.52625,68221.0,68220.0,0.31538104]
[1730601208920,0.54025,68221.0,68220.0,0.32038104]
[1730601209312,0.52625,68221.0,68220.0,0.32038104]
[1730601209756,0.54025,68221.0,68220.0,0.32038104]
[1730601209965,0.27610118,68221.0,68220.0,0.63892108]
[1730601210199,0.1998,68255.0,68244.0,0.146533]
[1730601210441,0.696,68254.0,68244.0,0.29233004]
[1730601210815,0.696,68254.0,68244.0,0.14579704]
[1730601211270,0.696,68254.0,68241.0,0.005]
[1730601211271,0.696,68254.0,68245.0,0.14579704]
[1730601211841,0.005,68251.0,68230.0,0.25251458]
[1730601212014,0.696,68254.0,68241.0,0.21844713]
[1730601212015,0.005,68244.0,68241.0,0.21844713]
[1730601212246,0.04152596,68250.0,68234.0,0.21844713]
[1730601212247,0.005,68241.0,68234.0,0.21844713]
[1730601212459,0.005,68241.0,68227.0,0.21844713]
[1730601212672,0.005,68241.0,68228.0,0.14579704]
[1730601212673,0.12882596,68241.0,68228.0,0.14579704]
[1730601213155,0.005,68239.0,68228.0,0.14579704]
[1730601213287,0.005,68239.0,68218.0,0.298177]
[1730601213288,0.005,68235.0,68218.0,0.005]
[1730601213508,0.1998,68238.0,68218.0,0.005]
[1730601213509,0.005,68231.0,68225.0,0.21844713]
[1730601213735,0.005,68231.0,68227.0,0.001]
[1730601214110,0.51298,68230.0,68225.0,0.14579704]
[1730601214478,0.2,68229.0,68226.0,0.21844713]
[1730601214668,0.51298,68228.0,68225.0,0.14579704]
[1730601215004,0.51298,68228.0,68227.0,0.001]
[1730601215513,0.51298,68228.0,68227.0,0.54488062]
[1730601216176,0.51298,68228.0,68227.0,0.29236604]
[1730601216410,0.51298,68228.0,68227.0,0.14579704]
[1730601216857,0.51298,68228.0,68227.0,0.29236604]
[1730601217263,0.51298,68228.0,68227.0,0.14579704]
[1730601217498,0.52798,68228.0,68227.0,0.14779704]
[1730601217958,0.51398,68228.0,68227.0,0.14679704]
[1730601218410,0.52798,68228.0,68227.0,0.29729684]
[1730601218706,0.51398,68228.0,68227.0,0.29336604]
[1730601218921,0.51298,68228.0,68227.0,0.29736604]
[1730601219133,0.52698,68228.0,68227.0,0.57388062]
[1730601219577,0.54098,68228.0,68227.0,0.57388062]
[1730601219793,0.52698,68228.0,68227.0,0.57388062]
[1730601220015,0.54098,68228.0,68227.0,0.71274339]
[1730601220246,0.54098,68228.0,68227.0,0.57488062]
[1730601220498,0.54098,68228.0,68227.0,0.57388062]
[1730601220499,0.52698,68228.0,68227.0,0.57388062]
[1730601220673,0.21844713,68250.0,68246.0,0.293056]
[1730601220881,0.21844713,68250.0,68249.0,0.146522]
[1730601221102,0.00164,68253.0,68252.0,0.146515]
[1730601221328,0.00164,68253.0,68252.0,0.29231204]
[1730601221533,0.04395133,68253.0,68252.0,0.29231204]
[1730601221747,0.04395133,68253.0,68252.0,0.32031204]
[1730601221748,0.04398725,68253.0,68252.0,0.32031204]
[1730601221951,0.00164,68253.0,68252.0,0.32031204]
[1730601223015,0.00164,68253.0,68252.0,0.32131204]
[1730601223223,0.01364,68253.0,68252.0,0.32131204]
[1730601223861,0.01564,68253.0,68252.0,0.32131204]
[1730601224071,0.00164,68253.0,68252.0,0.32031204]
[1730601224295,0.00164,68253.0,68252.0,0.41095254]
[1730601224530,0.01564,68253.0,68252.0,0.32131204]
[1730601224745,0.00164,68253.0,68252.0,0.32031204]
[1730601225008,0.00164,68253.0,68252.0,0.32131204]
[1730601225241,0.02864,68253.0,68252.0,0.32131204]
[1730601225670,0.02964,68253.0,68252.0,0.32131204]
[1730601226125,0.04264,68253.0,68252.0,0.32231204]
[1730601226621,0.02964,68253.0,68252.0,0.32131204]
[1730601229986,0.12742371,68251.0,68245.0,0.14579704]
[1730601230265,0.10618054,68246.0,68245.0,0.14579704]
[1730601230451,0.00664,68253.0,68245.0,0.14579704]
[1730601230452,0.13406371,68253.0,68245.0,0.14579704]
[1730601230691,0.02064,68253.0,68252.0,0.001]
[1730601230917,0.02064,68253.0,68245.0,0.14679704]
[1730601230918,0.1863,68248.0,68245.0,0.001]
[1730601231149,0.12744682,68246.0,68245.0,0.002]
[1730601231445,0.2,68247.0,68245.0,0.002]
[1730601231612,0.2,68247.0,68245.0,0.001]
[1730601232097,0.013,68246.0,68245.0,0.001]
[1730601232580,0.013,68246.0,68238.0,0.21844713]
[1730601232813,0.12747751,68244.0,68239.0,0.14579704]
[1730601233767,0.12749022,68243.0,68239.0,0.14579704]
[1730601234066,0.014,68246.0,68238.0,0.001]
[1730601234067,0.20429022,68242.0,68238.0,0.001]
[1730601234297,0.59469,68242.0,68238.0,0.001]
[1730601234536,0.005,68240.0,68239.0,0.001]
[1730601234891,0.005,68240.0,68238.0,0.00035594]
[1730601234892,0.005,68239.0,68238.0,0.00035594]
[1730601235027,0.70419,68239.0,68238.0,0.00035594]
[1730601235327,0.70419,68239.0,68238.0,0.001]
[1730601235520,0.74571596,68239.0,68238.0,0.001]
[1730601235693,0.005,68230.0,68229.0,0.21844713]
[1730601235954,0.71789,68230.0,68229.0,0.21844713]
[1730601236180,0.71789,68230.0,68222.0,0.21844713]
[1730601236181,0.005,68226.0,68222.0,0.21844713]
[1730601236418,0.005,68224.0,68222.0,0.21844713]
[1730601236652,0.51289,68223.0,68222.0,0.21844713]
[1730601236882,0.51289,68223.0,68215.0,0.21926713]
[1730601237114,0.12741931,68222.0,68215.0,0.21926713]
[1730601237582,0.64530931,68222.0,68215.0,0.21926713]
[1730601237857,0.51289,68222.0,68215.0,0.21926713]
[1730601238079,0.51789,68222.0,68215.0,0.21926713]
[1730601238771,0.53189,68222.0,68215.0,0.00082]
[1730601239452,0.51789,68222.0,68215.0,0.00082]
[1730601239702,0.53189,68222.0,68215.0,0.00082]
[1730601239940,0.54589,68222.0,68215.0,0.00082]
[1730601240432,0.54589,68222.0,68216.0,0.00293136]
[1730601240680,0.54589,68222.0,68215.0,0.00082]
[1730601240922,0.54589,68222.0,68221.0,0.00014788]
[1730601241224,0.55483901,68222.0,68221.0,0.00014788]
[1730601241386,0.56883901,68222.0,68221.0,0.00014788]
[1730601241599,0.54083901,68222.0,68221.0,0.00014788]
[1730601241816,0.55483901,68222.0,68221.0,0.00014788]
[1730601242451,0.2731,68216.0,68215.0,0.00082]
[1730601242658,0.78099,68216.0,68215.0,0.00082]
[1730601243304,0.92678704,68216.0,68215.0,0.00082]
[1730601243540,0.78099,68216.0,68215.0,0.00082]
[1730601243753,0.78099,68216.0,68211.0,0.0008]
[1730601243754,0.005,68214.0,68211.0,0.0008]
[1730601243992,0.66102762,68214.0,68211.0,0.0008]
[1730601244435,0.51789,68214.0,68211.0,0.0008]
[1730601244450,0.51289,68214.0,68211.0,0.0008]
[1730601244648,0.64008319,68214.0,68211.0,0.0008]
[1730601244874,0.51289,68214.0,68213.0,0.29639604]
[1730601245602,0.52689,68214.0,68213.0,0.29639604]
[1730601245839,0.61165063,68214.0,68213.0,0.38897815]
[1730601246074,0.61164895,68214.0,68213.0,0.29639604]
[1730601246284,0.52689,68214.0,68213.0,0.32439604]
[1730601246525,0.54089,68214.0,68213.0,0.46687433]
[1730601246945,0.54089,68214.0,68213.0,0.32439604]
[1730601247187,0.52689,68214.0,68213.0,0.32639604]
[1730601247686,0.54089,68214.0,68213.0,0.32639604]
[1730601247898,0.51289,68214.0,68213.0,0.58049604]
[1730601248117,0.52689,68214.0,68213.0,0.42439604]
[1730601248341,0.54089,68214.0,68213.0,0.42439604]
[1730601248565,0.014,68214.0,68213.0,0.49963511]
[1730601248820,0.0635959,68230.0,68229.0,0.169565]
[1730601249039,0.21844713,68232.0,68231.0,0.16956]
[1730601249281,0.10599317,68236.0,68231.0,0.16956]
[1730601249282,0.08479454,68233.0,68231.0,0.14579704]
[1730601249534,0.005,68240.0,68215.0,0.005]
[1730601249535,0.005,68232.0,68215.0,0.005]
[1730601249769,0.005,68232.0,68224.0,0.21844713]
[1730601249770,0.08480737,68225.0,68224.0,0.21844713]
[1730601249976,0.0848068,68225.0,68224.0,0.14579704]
[1730601250181,0.10600922,68227.0,68224.0,0.14579704]
[1730601250665,0.191,68228.0,68224.0,0.14579704]
[1730601250892,0.191,68228.0,68225.0,0.00293095]
[1730601251165,0.0766,68233.0,68232.0,0.146558]
[1730601251420,0.014,68230.0,68229.0,0.146565]
[1730601251886,0.08483139,68231.0,68230.0,0.023]
[1730601252112,0.08483139,68232.0,68230.0,0.014]
[1730601252345,0.08483139,68232.0,68231.0,0.14579704]
[1730601252578,0.08484326,68232.0,68231.0,0.29235704]
[1730601252805,0.08484326,68233.0,68232.0,0.146558]
[1730601253038,0.10604156,68235.0,68234.0,0.146554]
[1730601253288,0.349,68241.0,68235.0,0.146552]
[1730601253289,0.10604156,68236.0,68235.0,0.146552]
[1730601253523,0.10604156,68236.0,68235.0,0.29234904]
[1730601253762,0.005,68246.0,68235.0,0.29234904]
[1730601253763,0.005,68246.0,68245.0,0.14653]
[1730601254019,0.005,68246.0,68239.0,0.146542]
[1730601254253,0.10607836,68241.0,68240.0,0.14579704]
[1730601254458,0.005,68246.0,68240.0,0.29233804]
[1730601254686,0.005,68246.0,68240.0,0.14579704]
[1730601254948,0.014,68246.0,68240.0,0.14579704]
[1730601255166,0.019,68246.0,68240.0,0.14579704]
[1730601255393,0.005,68246.0,68240.0,0.14579704]
[1730601255615,0.12719181,68244.0,68240.0,0.14579704]
[1730601256092,0.005,68242.0,68240.0,0.14579704]
[1730601256313,0.13229331,68242.0,68240.0,0.14579704]
[1730601256542,0.12729331,68241.0,68221.0,0.21926713]
[1730601256776,0.3736688,68232.0,68221.0,0.51243113]
[1730601257115,0.2676,68232.0,68231.0,0.21844713]
[1730601257208,0.2676,68232.0,68231.0,0.36500713]
[1730601257444,0.2676,68232.0,68231.0,0.29235704]
[1730601257668,0.13229331,68236.0,68234.0,0.146554]
[1730601257892,0.13229331,68236.0,68235.0,0.14579704]
[1730601257893,0.005,68236.0,68235.0,0.14579704]
[1730601258133,0.005,68234.0,68214.0,0.22344713]
[1730601258342,0.005,68234.0,68229.0,0.146563]
[1730601258569,0.14128536,68232.0,68230.0,0.14579704]
[1730601258795,0.005,68231.0,68230.0,0.14579704]
[1730601259020,0.0766,68241.0,68231.0,0.14656]
[1730601259021,0.12728536,68233.0,68231.0,0.14656]
[1730601259285,0.13228536,68233.0,68232.0,0.14579704]
[1730601259508,0.13227818,68233.0,68232.0,0.14579704]
[1730601259726,0.005,68233.0,68232.0,0.14579704]
[1730601260389,0.019,68233.0,68232.0,0.14579704]
[1730601260614,0.005,68233.0,68232.0,0.14579704]
[1730601260837,0.019,68233.0,68232.0,0.14579704]
[1730601261122,0.019,68233.0,68232.0,0.29235504]
[1730601261327,0.033,68233.0,68232.0,0.29235504]
[1730601261793,0.019,68233.0,68232.0,0.14579704]
[1730601262254,0.028,68233.0,68229.0,0.146565]
[1730601262486,0.005,68230.0,68229.0,0.29236204]
[1730601262932,0.005,68230.0,68229.0,0.14579704]
[1730601263192,0.005,68230.0,68229.0,0.29236204]
[1730601263676,0.005,68230.0,68229.0,0.58548804]
[1730601264153,0.014,68230.0,68229.0,0.58548804]
[1730601264383,0.08485344,68230.0,68229.0,0.60848804]
[1730601264626,0.09885344,68230.0,68229.0,0.61481804]
[1730601264856,0.014,68230.0,68229.0,0.61481804]
[1730601265086,0.028,68230.0,68229.0,0.61481804]
[1730601265552,0.028,68230.0,68229.0,0.29236204]
[1730601266023,0.014,68230.0,68229.0,0.29236204]
[1730601266486,0.028,68230.0,68229.0,0.29236204]
[1730601266712,0.014,68230.0,68229.0,0.29236204]
[1730601266932,0.028,68230.0,68229.0,0.29236204]
[1730601267189,0.014,68230.0,68229.0,0.29236204]
[1730601267415,0.00164,68233.0,68232.0,0.146558]
[1730601267634,0.00164,68233.0,68232.0,0.29235504]
[1730601267867,0.10770254,68233.0,68232.0,0.4582804]
[1730601268110,0.00164,68233.0,68232.0,0.31535504]
[1730601268346,0.08650875,68233.0,68232.0,0.31535504]
[1730601268823,0.00164,68233.0,68232.0,0.31535504]
[1730601269056,0.01564,68233.0,68232.0,0.31535504]
[1730601269280,0.12170254,68233.0,68232.0,0.31535504]
[1730601269969,0.13570254,68233.0,68232.0,0.31535504]